fUSD/lending_fUSD_20260129
["ID","MTS","AMOUNT","RATE_DAILY","PERIOD"]
[403952145,1769688632548,-500.0,0.00015999,2]
[403952146,1769688632559,-322.9273542,0.00015999,2]
[403952147,1769688632571,-177.0726458,0.00015999,2]
[403952148,1769688632580,-500.0,0.00015999,2]
[403952149,1769688632591,-500.0,0.00015999,2]
[403952150,1769688632604,-500.0,0.00015999,2]
[403952151,1769688632616,-500.0,0.00015999,2]
[403952152,1769688632626,-80.82670925,0.00015999,2]
[403952153,1769688632649,-419.17329075,0.00015999,2]
[403952154,1769688632659,-157.5101901,0.00015999,2]
[403952155,1769688632672,-342.4898099,0.00015999,2]
[403952156,1769688632682,-500.0,0.00015999,2]
[403952157,1769688632691,-145.79221695,0.00015999,2]
[403952158,1769688632703,-354.20778305,0.00015999,2]
[403952159,1769688632712,-344.40038406,0.00015999,2]
[403952164,1769688637791,-155.59961594,0.00015999,2]
[403952165,1769688637802,-500.0,0.00015999,2]
[403952166,1769688637814,-500.0,0.00015999,2]
[403952167,1769688637825,-500.0,0.00015999,2]
[403952168,1769688637836,-500.0,0.00015999,2]
[403952169,1769688637846,-500.0,0.00015999,2]
[403952170,1769688637855,-500.0,0.00015999,2]
[403952171,1769688637864,-500.0,0.00015999,2]
[403952172,1769688637873,-500.0,0.00015999,2]
[403952173,1769688637883,-500.0,0.00015999,2]
[403952174,1769688637892,-500.0,0.00015999,2]
[403952175,1769688637902,-500.0,0.00015999,2]
[403952176,1769688637911,-500.0,0.00015999,2]
[403952177,1769688637920,-500.0,0.00015999,2]
[403952178,1769688637929,-500.0,0.00015999,2]
[403952179,1769688637939,-500.0,0.00015999,2]
[403952180,1769688637948,-500.0,0.00015999,2]
[403952181,1769688637957,-500.0,0.00015999,2]
[403952182,1769688637966,-500.0,0.00015999,2]
[403952183,1769688637976,-500.0,0.00015999,2]
[403952184,1769688637985,-500.0,0.00015999,2]
[403952185,1769688637994,-500.0,0.00015999,2]
[403952186,1769688638004,-500.0,0.00015999,2]
[403952187,1769688638013,-500.0,0.00015999,2]
[403952188,1769688638023,-500.0,0.00015999,2]
[403952189,1769688638032,-519.97392086,0.00015999,2]
[403952190,1769688638041,-500.0,0.00015999,2]
[403952191,1769688638051,-500.0,0.00015999,2]
[403952192,1769688638060,-500.0,0.00015999,2]
[403952193,1769688638070,-507.35345227,0.00015999,2]
[403952194,1769688638080,-500.0,0.00015999,2]
[403952195,1769688638089,-500.0,0.00015999,2]
[403952196,1769688638099,-500.0,0.00015999,2]
[403952197,1769688638108,-500.0,0.00015999,2]
[403952198,1769688638118,-500.0,0.00015999,2]
[403952199,1769688638127,-500.0,0.00015999,2]
[403952200,1769688638137,-500.0,0.00015999,2]
[403952201,1769688638147,-500.0,0.00015999,2]
[403952202,1769688638156,-500.0,0.00015999,2]
[403952204,1769688638165,-500.0,0.00015999,2]
[403952206,1769688638174,-151.0,0.00016002,2]
[403952208,1769688638183,-500.0,0.00016247,2]
[403952209,1769688638193,-500.0,0.00016247,2]
[403952211,1769688638202,-500.0,0.00016247,2]
[403952213,1769688638211,-500.0,0.00016247,2]
[403952215,1769688638220,-500.0,0.00016247,2]
[403952216,1769688638230,-500.0,0.00016247,2]
[403952218,1769688638239,-500.0,0.00016247,2]
[403952220,1769688638249,-500.0,0.00016247,2]
[403952222,1769688638258,-500.0,0.00016247,2]
[403952224,1769688638268,-500.0,0.00016247,2]
[403952226,1769688638277,-500.0,0.00016247,2]
[403952228,1769688638287,-500.0,0.00016247,2]
[403952230,1769688638297,-500.0,0.00016247,2]
[403952232,1769688638306,-500.0,0.00016247,2]
[403952234,1769688638316,-500.0,0.00016247,2]
[403952236,1769688638325,-500.0,0.00016247,2]
[403952238,1769688638335,-500.0,0.00016247,2]
[403952240,1769688638344,-500.0,0.00016247,2]
[403952242,1769688638354,-236.57601608,0.00016247,2]
[403952244,1769688638363,-500.0,0.00016247,2]
[403952246,1769688638372,-500.0,0.00016247,2]
[403952248,1769688638382,-500.0,0.00016247,2]
[403952250,1769688638392,-500.0,0.00016247,2]
[403952252,1769688638402,-6878.26,0.00016248,2]
[403952254,1769688638411,-166.66,0.00016305,2]
[403952256,1769688638420,-2357.12,0.00016316,2]
[403952258,1769688638429,-500.0,0.00016437,2]
[403952260,1769688638442,-190.24370403,0.00016437,2]
[403952262,1769688638451,-500.0,0.00016437,2]
[403952264,1769688638461,-500.0,0.00016437,2]
[403952266,1769688638470,-500.0,0.00016437,2]
[403952268,1769688638480,-500.0,0.00016438,2]
[403952270,1769688638489,-500.0,0.00016438,2]
[403952271,1769688638499,-500.0,0.00016438,2]
[403952274,1769688638509,-500.0,0.00016438,2]
[403952276,1769688638518,-500.0,0.00016438,2]
[403952278,1769688638528,-500.0,0.00016438,2]
[403952279,1769688638537,-500.0,0.00016438,2]
[403952281,1769688638546,-500.0,0.00016438,2]
[403952283,1769688638556,-500.0,0.00016438,2]
[403952285,1769688638567,-500.0,0.00016438,2]
[403952287,1769688638577,-500.0,0.00016438,2]
[403952289,1769688638586,-500.0,0.00016438,2]
[403952291,1769688638598,-500.0,0.00016438,2]
[403952293,1769688638607,-500.0,0.00016438,2]
[403952295,1769688638617,-500.0,0.00016438,2]
[403952297,1769688638626,-500.0,0.00016438,2]
[403952299,1769688638638,-500.0,0.00016438,2]
[403952301,1769688638647,-500.0,0.00016438,2]
[403952303,1769688638657,-500.0,0.00016438,2]
[403952305,1769688638668,-510.57190222,0.00016438,2]
[403952307,1769688638677,-500.0,0.00016438,2]
[403952309,1769688638687,-500.0,0.00016438,2]
[403952311,1769688638696,-500.0,0.00016438,2]
[403952313,1769688638705,-500.0,0.00016438,2]
[403952315,1769688638714,-500.0,0.00016438,2]
[403952317,1769688638724,-500.0,0.00016438,2]
[403952319,1769688638733,-500.0,0.00016438,2]
[403952321,1769688638742,-500.0,0.00016438,2]
[403952323,1769688638752,-500.0,0.00016438,2]
[403952325,1769688638761,-500.0,0.00016438,2]
[403952327,1769688638770,-500.0,0.00016438,2]
[403952329,1769688638779,-500.0,0.00016438,2]
[403952331,1769688638789,-500.0,0.00016438,2]
[403952333,1769688638798,-500.0,0.00016438,2]
[403952335,1769688638808,-500.0,0.00016438,2]
[403952337,1769688638817,-500.0,0.00016438,2]
[403952339,1769688638826,-500.0,0.00016438,2]
[403952341,1769688638836,-550.0,0.00016438,2]
[403952342,1769688638845,-500.0,0.00016438,2]
[403952344,1769688638855,-3571.47,0.00016452,2]
[403952346,1769688638865,-9999.99,0.00016452,2]
[403952348,1769688638875,-299.99,0.00016452,4]
[403952350,1769688638885,-500.0,0.00016471,2]
[403952352,1769688638894,-9999.99,0.00016471,2]
[403952354,1769688638903,-999.99,0.00016471,2]
[403952364,1769688639009,-150.99,0.00016471,2]
[403952365,1769688639019,-9999.99,0.00016471,2]
[403952366,1769688639028,-1805.41,0.00016487,2]
[403952367,1769688639037,-500.0,0.00016537,2]
[403952368,1769688639047,-202.81839158,0.00016537,2]
[403952369,1769688639056,-200.0,0.00016537,2]
[403952370,1769688639065,-166.66,0.00016628,2]
[403952371,1769688639075,-15524.92586923,0.00016716,2]
[403952372,1769688639084,-627.41495303,0.00016813,2]
[403952373,1769688639094,-500.0,0.00016814,2]
[403952374,1769688639103,-500.0,0.00016814,2]
[403952375,1769688639113,-500.0,0.00016814,2]
[403952376,1769688639123,-500.0,0.00016814,2]
[403952377,1769688639133,-155.08275529,0.00016816,2]
[403952378,1769688639143,-433.0,0.00016816,2]
[403952379,1769688639153,-500.0,0.00016816,2]
[403952380,1769688639162,-500.0,0.00016816,2]
[403952382,1769688639171,-150.0,0.00016816,2]
[403952383,1769688639181,-500.0,0.00016816,2]
[403952385,1769688639190,-150.0,0.00016816,2]
[403952387,1769688639199,-500.0,0.00016816,2]
[403952389,1769688639209,-153.49169351,0.00016816,2]
[403952391,1769688639218,-150.0,0.00016816,2]
[403952393,1769688639227,-555.0,0.00016816,2]
[403952395,1769688639236,-150.0,0.00016816,2]
[403952397,1769688639245,-500.0,0.00016816,2]
[403952399,1769688639254,-253.87073622,0.00016816,2]
[403952401,1769688639265,-437.0,0.00016816,2]
[403952402,1769688639274,-500.0,0.00016816,2]
[403952404,1769688639284,-500.0,0.00016816,2]
[403952406,1769688639295,-500.0,0.00016816,2]
[403952407,1769688639304,-165.72537453,0.00016816,2]
[403952408,1769688639314,-150.0,0.00016816,2]
[403952410,1769688639323,-500.0,0.00016816,2]
[403952411,1769688639332,-500.0,0.00016816,2]
[403952412,1769688639341,-500.0,0.00016816,2]
[403952413,1769688639351,-500.0,0.00016816,2]
[403952414,1769688639360,-500.0,0.00016816,2]
[403952415,1769688639370,-150.0,0.00016816,2]
[403952416,1769688639379,-150.0,0.00016816,2]
[403952417,1769688639389,-500.0,0.00016816,2]
[403952418,1769688639399,-500.0,0.00016816,2]
[403952419,1769688639408,-500.0,0.00016816,2]
[403952420,1769688639418,-15524.92586921,0.00016848,2]
[403952421,1769688639427,-250.0,0.00016871,2]
[403952422,1769688639436,-433.0,0.00016871,2]
[403952423,1769688639446,-500.0,0.00016871,2]
[403952424,1769688639455,-500.0,0.00016871,2]
[403952425,1769688639464,-150.0,0.00016871,2]
[403952426,1769688639472,-500.0,0.00016871,2]
[403952427,1769688639481,-150.0,0.00016871,2]
[403952428,1769688639490,-500.0,0.00016871,2]
[403952429,1769688639499,-176.88485057,0.00016871,2]
[403952430,1769688639508,-152.64052045,0.00016871,2]
[403952431,1769688639518,-555.0,0.00016871,2]
[403952432,1769688639527,-500.0,0.00016871,2]
[403952433,1769688639536,-437.0,0.00016871,2]
[403952434,1769688639545,-500.0,0.00016871,2]
[403952435,1769688639554,-500.0,0.00016871,2]
[403952436,1769688639563,-500.0,0.00016871,2]
[403952437,1769688639572,-500.0,0.00016871,2]
[403952438,1769688639581,-500.0,0.00016871,2]
[403952439,1769688639591,-500.0,0.00016871,2]
[403952440,1769688639605,-500.0,0.00016871,2]
[403952441,1769688639614,-500.0,0.00016871,2]
[403952442,1769688639623,-500.0,0.00016871,2]
[403952443,1769688639632,-500.0,0.00016871,2]
[403952445,1769688639643,-500.0,0.00016871,2]
[403952446,1769688639652,-433.0,0.00016926,2]
[403952447,1769688639661,-500.0,0.00016926,2]
[403952448,1769688639672,-500.0,0.00016926,2]
[403952449,1769688639682,-150.0,0.00016926,2]
[403952450,1769688639691,-500.0,0.00016926,2]
[403952452,1769688639700,-150.0,0.00016926,2]
[403952454,1769688639709,-353.50697383,0.00016926,2]
[403952456,1769688639719,-555.0,0.00016926,2]
[403952457,1769688639728,-500.0,0.00016926,2]
[403952458,1769688639737,-437.0,0.00016926,2]
[403952459,1769688639746,-500.0,0.00016926,2]
[403952460,1769688639755,-500.0,0.00016926,2]
[403952461,1769688639764,-500.0,0.00016926,2]
[403952462,1769688639773,-500.0,0.00016926,2]
[403952463,1769688639782,-500.0,0.00016926,2]
[403952464,1769688639791,-500.0,0.00016926,2]
[403952465,1769688639800,-500.0,0.00016926,2]
[403952466,1769688639812,-500.0,0.00016926,2]
[403952467,1769688639822,-500.0,0.00016926,2]
[403952468,1769688639831,-547.35480279,0.00016926,2]
[403952469,1769688639840,-500.0,0.00016926,2]
[403952470,1769688639850,-2500.0,0.00016935,2]
[403952471,1769688639859,-166.66,0.00016951,2]
[403952472,1769688639868,-15524.92586921,0.00016979,2]
[403952473,1769688639877,-433.0,0.0001698,2]
[403952474,1769688639887,-500.0,0.0001698,2]
[403952475,1769688639896,-500.0,0.0001698,2]
[403952476,1769688639904,-202.34395111,0.0001698,2]
[403952477,1769688639914,-500.0,0.0001698,2]
[403952478,1769688639923,-150.0,0.0001698,2]
[403952479,1769688639932,-500.0,0.0001698,2]
[403952480,1769688639942,-555.0,0.0001698,2]
[403952481,1769688639951,-437.0,0.0001698,2]
[403952482,1769688639960,-350.34724417,0.0001698,2]
[403952483,1769688639969,-500.0,0.0001698,2]
[403952484,1769688639978,-500.0,0.0001698,2]
[403952485,1769688639987,-500.0,0.0001698,2]
[403952486,1769688639996,-500.0,0.0001698,2]
[403952487,1769688640005,-500.0,0.0001698,2]
[403952488,1769688640015,-500.0,0.0001698,2]
[403952489,1769688640024,-500.0,0.0001698,2]
[403952490,1769688640033,-623.21613332,0.0001698,2]
[403952491,1769688640041,-500.0,0.0001698,2]
[403952492,1769688640050,-500.0,0.00016999,2]
[403952493,1769688640059,-500.0,0.00016999,2]
[403952494,1769688640068,-500.0,0.00016999,2]
[403952495,1769688640077,-500.0,0.00016999,2]
[403952496,1769688640086,-500.0,0.00016999,2]
[403952497,1769688640095,-500.0,0.00016999,2]
[403952498,1769688640104,-500.0,0.00016999,2]
[403952499,1769688640114,-500.0,0.00016999,2]
[403952500,1769688640123,-250.0,0.00017,2]
[403952501,1769688640132,-308.18256524,0.00017,2]
[403952502,1769688640141,-160.67,0.00017025,2]
[403952503,1769688640151,-433.0,0.00017035,2]
[403952504,1769688640161,-379.63759782,0.00017035,2]
[403952505,1769688640170,-500.0,0.00017035,2]
[403952506,1769688640180,-500.0,0.00017035,2]
[403952507,1769688640189,-290.22964713,0.00017035,2]
[403952508,1769688640199,-500.0,0.00017035,2]
[403952509,1769688640208,-555.0,0.00017035,2]
[403952510,1769688640217,-437.0,0.00017035,2]
[403952511,1769688640227,-500.0,0.00017035,2]
[403952512,1769688640236,-500.0,0.00017035,2]
[403952514,1769688640245,-500.0,0.00017035,2]
[403952516,1769688640254,-500.0,0.00017035,2]
[403952517,1769688640263,-500.0,0.00017035,2]
[403952518,1769688640272,-500.0,0.00017035,2]
[403952519,1769688640282,-500.0,0.00017035,2]
[403952520,1769688640291,-500.0,0.00017035,2]
[403952521,1769688640300,-500.0,0.00017085,2]
[403952522,1769688640309,-200.0,0.00017085,2]
[403952523,1769688640318,-500.0,0.00017086,2]
[403952524,1769688640327,-433.0,0.0001709,2]
[403952525,1769688640336,-500.0,0.0001709,2]
[403952526,1769688640345,-500.0,0.0001709,2]
[403952527,1769688640355,-500.0,0.0001709,2]
[403952528,1769688640364,-555.0,0.0001709,2]
[403952529,1769688640373,-437.0,0.0001709,2]
[403952530,1769688640382,-500.0,0.0001709,2]
[403952531,1769688640391,-500.0,0.0001709,2]
[403952532,1769688640401,-500.0,0.0001709,2]
[403952533,1769688640410,-500.0,0.0001709,2]
[403952534,1769688640419,-500.0,0.0001709,2]
[403952535,1769688640428,-500.0,0.0001709,2]
[403952536,1769688640438,-500.0,0.0001709,2]
[403952537,1769688640447,-500.0,0.0001709,2]
[403952538,1769688640457,-15524.92586921,0.00017111,2]
[403952539,1769688640467,-504.32915606,0.00017144,2]
[403952540,1769688640476,-433.0,0.00017145,2]
[403952541,1769688640485,-204.87785058,0.00017145,2]
[403952542,1769688640495,-500.0,0.00017145,2]
[403952543,1769688640504,-500.0,0.00017145,2]
[403952544,1769688640513,-555.0,0.00017145,2]
[403952545,1769688640522,-437.0,0.00017145,2]
[403952546,1769688640531,-301.95608544,0.00017145,2]
[403952547,1769688640540,-500.0,0.00017145,2]
[403952548,1769688640550,-609.30429848,0.00017145,2]
[403952549,1769688640560,-500.0,0.00017145,2]
[403952550,1769688640569,-500.0,0.00017145,2]
[403952551,1769688640580,-500.0,0.00017145,2]
[403952552,1769688640591,-500.0,0.00017145,2]
[403952553,1769688640606,-353.1543642,0.00017145,2]
[403952554,1769688640615,-433.0,0.000172,2]
[403952555,1769688640624,-500.0,0.000172,2]
[403952556,1769688640634,-500.0,0.000172,2]
[403952557,1769688640645,-555.0,0.000172,2]
[403952558,1769688640655,-437.0,0.000172,2]
[403952559,1769688640665,-500.0,0.000172,2]
[403952560,1769688640676,-500.0,0.000172,2]
[403952561,1769688640686,-500.0,0.000172,2]
[403952562,1769688640697,-500.0,0.000172,2]
[403952563,1769688640707,-500.0,0.000172,2]
[403952564,1769688640716,-500.0,0.00017232,2]
[403952565,1769688640725,-500.0,0.00017232,2]
[403952566,1769688640735,-510.98377513,0.00017232,2]
[403952567,1769688640744,-500.0,0.00017232,2]
[403952568,1769688640753,-313.98915356,0.00017241,2]
[403952569,1769688640763,-447.74633068,0.00017241,2]
[403952570,1769688640773,-500.0,0.00017241,2]
[403952571,1769688640783,-449.58659908,0.00017241,2]
[403952572,1769688640793,-500.0,0.00017241,2]
[403952573,1769688640803,-500.0,0.00017241,2]
[403952574,1769688640812,-500.0,0.00017241,2]
[403952575,1769688640822,-586.68889496,0.00017241,2]
[403952576,1769688640831,-15524.92586921,0.00017242,2]
[403952577,1769688640840,-433.0,0.00017254,2]
[403952578,1769688640849,-500.0,0.00017254,2]
[403952579,1769688640858,-500.0,0.00017254,2]
[403952580,1769688640872,-555.0,0.00017254,2]
[403952581,1769688640881,-437.0,0.00017254,2]
[403952582,1769688640891,-500.0,0.00017254,2]
[403952583,1769688640901,-500.0,0.00017254,2]
[403952584,1769688640911,-500.0,0.00017254,2]
[403952585,1769688640920,-500.0,0.00017254,2]
[403952586,1769688640930,-364.37974827,0.00017254,2]
[403952587,1769688640939,-302.53,0.00017282,2]
[403952588,1769688640948,-150.0,0.00017302,2]
[403952589,1769688640957,-227.11,0.00017302,2]
[403952590,1769688640967,-433.0,0.00017309,2]
[403952591,1769688640976,-500.0,0.00017309,2]
[403952592,1769688640986,-500.0,0.00017309,2]
[403952593,1769688640997,-555.0,0.00017309,2]
[403952594,1769688641007,-437.0,0.00017309,2]
[403952595,1769688641017,-500.0,0.00017309,2]
[403952596,1769688641026,-500.0,0.00017309,2]
[403952597,1769688641036,-500.0,0.00017309,2]
[403952598,1769688641045,-500.0,0.00017309,2]
[403952599,1769688641054,-2292.77,0.00017363,2]
[403952600,1769688641063,-433.0,0.00017364,2]
[403952601,1769688641073,-375.67688444,0.00017364,2]
[403952602,1769688641082,-500.0,0.00017364,2]
[403952603,1769688641092,-555.0,0.00017364,2]
[403952604,1769688641101,-437.0,0.00017364,2]
[403952605,1769688641112,-500.0,0.00017364,2]
[403952606,1769688641122,-462.54801825,0.00017364,2]
[403952607,1769688641131,-500.0,0.00017364,2]
[403952608,1769688641141,-500.0,0.00017364,2]
[403952609,1769688641151,-15524.92586921,0.00017374,2]
[403952610,1769688641160,-433.0,0.00017419,2]
[403952611,1769688641170,-500.0,0.00017419,2]
[403952612,1769688641179,-555.0,0.00017419,2]
[403952613,1769688641189,-437.0,0.00017419,2]
[403952614,1769688641198,-500.0,0.00017419,2]
[403952615,1769688641208,-500.0,0.00017419,2]
[403952616,1769688641218,-500.0,0.00017419,2]
[403952617,1769688641227,-357.79834138,0.00017432,2]
[403952618,1769688641241,-944.23548382,0.00017432,2]
[403952619,1769688641252,-1665.74331726,0.00017432,2]
[403952620,1769688641261,-2491.85238106,0.00017432,2]
[403952621,1769688641271,-3371.5638,0.00017432,2]
[403952622,1769688641281,-433.0,0.00017474,2]
[403952623,1769688641291,-604.47218601,0.00017474,2]
[403952624,1769688641300,-555.0,0.00017474,2]
[403952625,1769688641311,-437.0,0.00017474,2]
[403952626,1769688641320,-500.0,0.00017474,2]
[403952627,1769688641332,-500.0,0.00017474,2]
[403952628,1769688641341,-500.0,0.00017474,2]
[403952629,1769688641351,-1644.0,0.00017476,2]
[403952630,1769688641361,-195.0,0.00017492,2]
[403952631,1769688641371,-500.0,0.00017499,2]
[403952632,1769688641380,-500.0,0.00017499,2]
[403952633,1769688641390,-500.0,0.00017499,2]
[403952634,1769688641399,-15524.92586921,0.00017505,2]
[403952635,1769688641409,-500.0,0.00017507,2]
[403952636,1769688641418,-433.0,0.00017528,2]
[403952637,1769688641427,-555.0,0.00017528,2]
[403952638,1769688641436,-437.0,0.00017528,2]
[403952639,1769688641446,-500.0,0.00017528,2]
[403952640,1769688641455,-500.0,0.00017528,2]
[403952641,1769688641465,-500.0,0.00017528,2]
[403952642,1769688641474,-433.0,0.00017583,2]
[403952643,1769688641483,-555.0,0.00017583,2]
[403952644,1769688641493,-437.0,0.00017583,2]
[403952645,1769688641502,-500.0,0.00017583,2]
[403952646,1769688641511,-500.0,0.00017583,2]
[403952647,1769688641520,-500.0,0.00017583,2]
[403952648,1769688641530,-500.0,0.00017633,2]
[403952649,1769688641539,-200.0,0.00017633,2]
[403952650,1769688641549,-15524.92586921,0.00017637,2]
[403952651,1769688641559,-433.0,0.00017638,2]
[403952652,1769688641569,-555.0,0.00017638,2]
[403952653,1769688641578,-437.0,0.00017638,2]
[403952654,1769688641587,-500.0,0.00017638,2]
[403952655,1769688641602,-500.0,0.00017638,2]
[403952656,1769688641612,-500.0,0.00017638,2]
[403952657,1769688641622,-433.0,0.00017693,2]
[403952658,1769688641631,-555.0,0.00017693,2]
[403952659,1769688641642,-437.0,0.00017693,2]
[403952660,1769688641652,-500.0,0.00017693,2]
[403952661,1769688641662,-406.40858732,0.00017693,2]
[403952662,1769688641672,-500.0,0.00017693,2]
[403952663,1769688641681,-433.0,0.00017748,2]
[403952664,1769688641691,-555.0,0.00017748,2]
[403952665,1769688641700,-437.0,0.00017748,2]
[403952666,1769688641709,-500.0,0.00017748,2]
[403952667,1769688641719,-613.4131902,0.00017748,2]
[403952668,1769688641729,-12644.22608124,0.00017766,2]
[403952669,1769688641739,-15524.92586921,0.00017768,2]
[403952670,1769688641748,-12644.22608122,0.00017781,2]
[403952671,1769688641758,-12644.22608122,0.00017796,2]
[403952672,1769688641767,-3958.3225,0.000178,2]
[403952673,1769688641777,-1000.0,0.000178,2]
[403952674,1769688641787,-33270.6958,0.000178,2]
[403952675,1769688641800,-309.16484858,0.000178,2]
[403952676,1769688641809,-387.00484419,0.000178,2]
[403952677,1769688641819,-3426.35707104,0.000178,2]
[403952678,1769688641829,-433.0,0.00017802,2]
[403952679,1769688641838,-555.0,0.00017802,2]
[403952680,1769688641847,-437.0,0.00017802,2]
[403952681,1769688641858,-188.59501602,0.00017802,2]
[403952682,1769688641868,-500.0,0.00017808,2]
[403952683,1769688641878,-12644.22608122,0.00017811,2]
[403952684,1769688641887,-3426.357071,0.0001782,2]
[403952685,1769688641896,-309.16484855,0.00017825,2]
[403952686,1769688641905,-12644.22608122,0.00017826,2]
[403952687,1769688641915,-3426.357071,0.0001784,2]
[403952688,1769688641924,-12644.22608122,0.0001784,2]
[403952689,1769688641933,-309.16484855,0.0001785,2]
[403952690,1769688641943,-387.00484419,0.0001785,2]
[403952691,1769688641952,-12644.22608122,0.00017855,2]
[403952692,1769688641962,-25000.0,0.00017856,3]
[403952693,1769688641971,-433.0,0.00017857,2]
[403952694,1769688641980,-555.0,0.00017857,2]
[403952695,1769688641989,-437.0,0.00017857,2]
[403952696,1769688642001,-3426.357071,0.0001786,2]
[403952697,1769688642010,-500.0,0.00017863,2]
[403952698,1769688642020,-25000.0,0.00017865,3]
[403952699,1769688642031,-500.0,0.00017866,2]
[403952700,1769688642040,-12644.22608122,0.0001787,2]
[403952701,1769688642049,-500.0,0.00017873,2]
[403952702,1769688642059,-500.0,0.00017873,2]
[403952703,1769688642068,-500.0,0.00017873,2]
[403952704,1769688642077,-25000.0,0.00017874,3]
[403952705,1769688642087,-309.16484855,0.00017875,2]
[403952706,1769688642100,-151.0,0.00017879,2]
[403952707,1769688642109,-3426.357071,0.0001788,2]
[403952708,1769688642119,-8307.60383852,0.00017882,3]
[403952709,1769688642882,-500.0,0.00017882,3]
[403952710,1769688642893,-3753.19685657,0.00017882,3]
[403952717,1769688643337,-12439.19930491,0.00017882,3]
[403952718,1769688643346,-12644.22608122,0.00017885,2]
[403952719,1769688643356,-755.57481521,0.0001789,2]
[403952720,1769688643365,-25000.0,0.00017891,3]
[403952721,1769688643374,-151.0,0.00017897,2]
[403952722,1769688643383,-151.0,0.00017897,2]
[403952723,1769688643392,-360.76076802,0.00017899,2]
[403952724,1769688643402,-234.35719949,0.00017899,2]
[403952725,1769688643411,-500.0,0.00017899,2]
[403952726,1769688643420,-500.0,0.00017899,2]
[403952727,1769688643429,-150.0,0.00017899,2]
[403952728,1769688643438,-500.0,0.00017899,2]
[403952729,1769688643447,-500.0,0.00017899,2]
[403952730,1769688643456,-500.0,0.00017899,2]
[403952731,1769688643465,-500.0,0.00017899,2]
[403952732,1769688643474,-500.0,0.00017899,2]
[403952733,1769688643483,-500.0,0.00017899,2]
[403952734,1769688643493,-500.0,0.00017899,2]
[403952735,1769688643502,-500.0,0.00017899,2]
[403952736,1769688643511,-1800000.0,0.000179,2]
[403952737,1769688643520,-10000.0,0.000179,2]
[403952738,1769688643529,-25000.0,0.000179,3]
[403952739,1769688643538,-309.16484855,0.000179,2]
[403952740,1769688643548,-387.00484419,0.000179,2]
[403952741,1769688643557,-12644.22608122,0.000179,2]
[403952742,1769688643566,-15524.92586921,0.000179,2]
[403952743,1769688643576,-2124.92631696,0.000179,2]
[403952744,1769688643585,-27284.82101384,0.000179,2]
[403952745,1769688643595,-3426.357071,0.000179,2]
[403952746,1769688643606,-706.34121756,0.000179,2]
[403952747,1769688643616,-487.0,0.000179,2]
[403952748,1769688643626,-487.0,0.000179,2]
[403952749,1769688643635,-487.0,0.000179,2]
[403952750,1769688643647,-487.0,0.000179,2]
[403952751,1769688643656,-581.74,0.000179,2]
[403952752,1769688643672,-433.0,0.00017912,2]
[403952753,1769688643682,-555.0,0.00017912,2]
[403952754,1769688643691,-437.0,0.00017912,2]
[403952755,1769688643701,-500.0,0.00017918,2]
[403952756,1769688643710,-433.0,0.00017967,2]